fUST/lending_fUST_20250422
["ID","MTS","AMOUNT","RATE_DAILY","PERIOD"]
[358599555,1745299351383,-177.33635,0.00023413,7]
[358599556,1745299351437,-177.33635,0.00023413,7]
[358599557,1745299351469,-177.33635,0.00023413,7]
[358599558,1745299351501,-177.336346,0.00023413,7]
[358599559,1745299351533,-202.600222,0.00023413,7]
[358599560,1745299351568,-202.600222,0.00023413,7]
[358599561,1745299351600,-151.0,0.00023413,7]
[358599562,1745299351632,-154.346852,0.00023413,7]
[358599563,1745299351664,-151.0,0.00023413,7]
[358599564,1745299351696,-213.90933,0.00023413,7]
[358599565,1745299351729,-213.90933,0.00023413,7]
[358599566,1745299351763,-191.666777,0.00023413,7]
[358599567,1745299351797,-191.666777,0.00023413,7]
[358599568,1745299351830,-665.917681,0.00023413,7]
[358599569,1745299351862,-665.917681,0.00023413,7]
[358599570,1745299351893,-151.0,0.00023419,7]
[358599571,1745299351925,-151.0,0.00023419,7]
[358599572,1745299351960,-202.600222,0.00023419,7]
[358599573,1745299351996,-202.60022,0.00023419,7]
[358599574,1745299352030,-151.0,0.00023561,7]
[358599575,1745299352063,-151.0,0.00023561,7]
[358599576,1745299352095,-151.0,0.00023561,7]
[358599577,1745299352126,-151.0,0.00023561,7]
[358599578,1745299352158,-151.0,0.00023561,7]
[358599579,1745299352190,-160.639584,0.00023561,7]
[358599580,1745299352222,-160.639584,0.00023561,7]
[358599581,1745299352254,-216.68199,0.00023561,7]
[358599582,1745299352287,-216.68199,0.00023561,7]
[358599583,1745299352321,-243.007229,0.00023561,7]
[358599584,1745299352354,-243.007229,0.00023561,7]
[358599585,1745299352388,-151.0,0.00023561,7]
[358599586,1745299352422,-214.197064,0.00023561,7]
[358599587,1745299352458,-214.197064,0.00023561,7]
[358599588,1745299352491,-151.0,0.00023561,7]
[358599589,1745299352523,-172.270057,0.00023561,7]
[358599590,1745299352556,-172.270057,0.00023561,7]
[358599591,1745299352591,-151.0,0.00023561,7]
[358599592,1745299352716,-151.0,0.0002368,7]
[358599593,1745299352748,-151.0,0.0002368,7]
[358599594,1745299352780,-213.90933,0.0002368,7]
[358599595,1745299352812,-213.90933,0.0002368,7]
[358599596,1745299352846,-191.666777,0.0002368,7]
[358599597,1745299352879,-151.0,0.0002368,7]
[358599598,1745299352911,-191.666777,0.0002368,7]
[358599599,1745299352942,-665.917681,0.0002368,7]
[358599600,1745299352974,-665.917681,0.0002368,7]
[358599601,1745299353006,-151.0,0.0002368,7]
[358599602,1745299353038,-151.0,0.0002368,7]
[358599603,1745299353069,-151.0,0.0002368,7]
[358599604,1745299353102,-151.0,0.0002368,7]
[358599605,1745299353134,-160.639584,0.0002368,7]
[358599606,1745299353166,-160.639584,0.0002368,7]
[358599607,1745299353198,-216.68199,0.0002368,7]
[358599608,1745299353231,-216.68199,0.0002368,7]
[358599609,1745299353263,-243.007229,0.0002368,7]
[358599610,1745299353297,-243.007229,0.0002368,7]
[358599611,1745299353331,-151.0,0.0002368,7]
[358599612,1745299353364,-172.270057,0.0002368,7]
[358599613,1745299353604,-172.270057,0.0002368,7]
[358599614,1745299353638,-151.0,0.0002368,7]
[358599615,1745299353671,-151.0,0.00023682,7]
[358599616,1745299353703,-505.36418559,0.00023687,7]
[358599617,1745299353736,-151.0,0.00023687,7]
[358599618,1745299353767,-151.0,0.00023687,7]
[358599619,1745299353799,-151.0,0.00023687,7]
[358599620,1745299353831,-151.0,0.00023687,7]
[358599621,1745299353865,-151.0,0.00023687,7]
[358599622,1745299353897,-151.0,0.00023687,7]
[358599623,1745299353928,-151.0,0.00023687,7]
[358599624,1745299353960,-151.0,0.00023687,7]
[358599625,1745299353992,-151.0,0.00023687,7]
[358599626,1745299354024,-170.700971,0.00023687,7]
[358599627,1745299354055,-151.0,0.00023687,7]
[358599628,1745299354088,-151.0,0.00023687,7]
[358599629,1745299354209,-151.0,0.00023687,7]
[358599630,1745299354242,-151.0,0.00023687,7]
[358599631,1745299354276,-151.619246,0.00023687,7]
[358599632,1745299354310,-151.0,0.00023687,7]
[358599633,1745299354344,-158.931794,0.00023687,7]
[358599634,1745299354377,-158.931794,0.00023687,7]
[358599635,1745299354412,-151.0,0.00023835,7]
[358599636,1745299354447,-151.0,0.00023835,7]
[358599637,1745299354481,-213.90933,0.00023835,7]
[358599638,1745299354514,-213.90933,0.00023835,7]
[358599639,1745299354547,-191.666777,0.00023835,7]
[358599640,1745299354581,-191.666777,0.00023835,7]
[358599641,1745299354614,-665.917681,0.00023835,7]
[358599642,1745299354647,-665.917681,0.00023835,7]
[358599643,1745299354681,-216.68199,0.00023835,7]
[358599644,1745299354716,-216.681993,0.00023835,7]
[358599645,1745299354749,-243.007229,0.00023835,7]
[358599646,1745299354781,-243.007225,0.00023835,7]
[358599647,1745299354813,-151.0,0.00023835,7]
[358599648,1745299354846,-214.197064,0.00023835,7]
[358599649,1745299354880,-214.19707,0.00023835,7]
[358599650,1745299354912,-151.0,0.00023835,7]
[358599651,1745299354948,-151.0,0.00023954,7]
[358599652,1745299354978,-151.0,0.00023954,7]
[358599653,1745299355011,-213.90933,0.00023954,7]
[358599654,1745299355042,-213.90933,0.00023954,7]
[358599655,1745299355074,-191.666777,0.00023954,7]
[358599656,1745299355106,-191.666777,0.00023954,7]
[358599657,1745299355137,-665.917681,0.00023954,7]
[358599658,1745299355168,-665.917681,0.00023954,7]
[358599659,1745299355202,-151.0,0.00023954,7]
[358599660,1745299355236,-155.019478,0.00023954,7]
[358599661,1745299355267,-151.0,0.00023954,7]
[358599662,1745299355299,-153.770658,0.00023954,7]
[358599663,1745299355332,-160.639584,0.00023954,7]
[358599664,1745299355460,-160.639584,0.00023954,7]
[358599665,1745299355494,-172.270057,0.00023954,7]
[358599666,1745299355528,-172.270064,0.00023954,7]
[358599667,1745299355560,-151.0,0.00023957,7]
[358599668,1745299355593,-158.931794,0.00023957,7]
[358599669,1745299355626,-158.931794,0.00023957,7]
[358599670,1745299355658,-151.914602,0.00023961,7]
[358599671,1745299355691,-254.219988,0.00023961,7]
[358599672,1745299355724,-151.0,0.00023961,7]
[358599673,1745299355755,-151.0,0.00023961,7]
[358599674,1745299355787,-151.0,0.00023961,7]
[358599675,1745299355818,-151.0,0.00023961,7]
[358599676,1745299355849,-151.0,0.00023961,7]
[358599677,1745299355881,-158.931794,0.00023961,7]
[358599678,1745299355912,-158.931794,0.00023961,7]
[358599679,1745299355943,-175.426174,0.00023961,7]
[358599680,1745299355975,-175.426174,0.00023961,7]
[358599681,1745299356007,-292.155656,0.00023961,7]
[358599682,1745299356039,-151.0,0.00023967,7]
[358599683,1745299356072,-158.931794,0.00023967,7]
[358599684,1745299356104,-158.931794,0.00023967,7]
[358599685,1745299356137,-420.73667954,0.00024,7]
[358599686,1745299356170,-160.0,0.00024,7]
[358599687,1745299356203,-151.0,0.00024109,7]
[358599688,1745299356236,-175.426174,0.00024109,7]
[358599689,1745299356269,-175.426174,0.00024109,7]
[358599690,1745299356306,-151.0,0.00024109,7]
[358599691,1745299356338,-151.0,0.00024109,7]
[358599692,1745299356371,-160.639584,0.00024109,7]
[358599693,1745299356402,-160.63959,0.00024109,7]
[358599694,1745299356440,-151.0,0.00024228,7]
[358599695,1745299356472,-151.0,0.00024228,7]
[358599696,1745299356506,-213.90933,0.00024228,7]
[358599697,1745299356538,-213.90933,0.00024228,7]
[358599698,1745299356651,-191.666777,0.00024228,7]
[358599699,1745299356685,-191.666777,0.00024228,7]
[358599700,1745299356716,-665.917681,0.00024228,7]
[358599701,1745299356751,-665.917681,0.00024228,7]
[358599702,1745299356785,-151.0,0.00024232,7]
[358599703,1745299356818,-158.931794,0.00024232,7]
[358599704,1745299356850,-158.931794,0.00024232,7]
[358599705,1745299356883,-151.0,0.00024235,7]
[358599706,1745299356916,-151.0,0.00024235,7]
[358599707,1745299356948,-151.0,0.00024235,7]
[358599708,1745299356983,-250.81686347,0.00024235,7]
[358599709,1745299357015,-254.12404814,0.00024235,7]
[358599710,1745299357049,-208.13235835,0.00024235,7]
[358599711,1745299357081,-151.0,0.00024235,7]
[358599712,1745299357113,-204.32406219,0.00024235,7]
[358599713,1745299357145,-151.0,0.00024235,7]
[358599714,1745299357177,-151.0,0.00024235,7]
[358599715,1745299357209,-151.0,0.00024235,7]
[358599716,1745299357241,-151.0,0.00024235,7]
[358599717,1745299357274,-175.426174,0.00024235,7]
[358599718,1745299357310,-175.426174,0.00024235,7]
[358599719,1745299357341,-151.0,0.00024241,7]
[358599720,1745299357374,-151.0,0.00024241,7]
[358599721,1745299357406,-158.931794,0.00024241,7]
[358599722,1745299357438,-158.931794,0.00024241,7]
[358599723,1745299357472,-175.426174,0.00024241,7]
[358599724,1745299357505,-175.426174,0.00024241,7]
[358599725,1745299357538,-151.0,0.00024383,7]
[358599726,1745299357571,-151.0,0.00024383,7]
[358599727,1745299357603,-213.90933,0.00024383,7]
[358599728,1745299357634,-213.909326,0.00024383,7]
[358599729,1745299357668,-191.666777,0.00024383,7]
[358599730,1745299357702,-191.666769,0.00024383,7]
[358599731,1745299357736,-665.917681,0.00024383,7]
[358599732,1745299357768,-665.917676,0.00024383,7]
[358599733,1745299357898,-151.0,0.00024506,7]
[358599734,1745299357931,-158.931794,0.00024506,7]
[358599735,1745299357964,-158.931794,0.00024506,7]
[358599736,1745299357997,-151.0,0.00024509,7]
[358599737,1745299358028,-151.0,0.00024509,7]
[358599738,1745299358060,-151.0,0.00024509,7]
[358599739,1745299358093,-151.0,0.00024509,7]
[358599740,1745299358127,-175.426174,0.00024509,7]
[358599741,1745299358160,-175.426174,0.00024509,7]
[358599742,1745299358193,-151.0,0.00024515,7]
[358599743,1745299358225,-151.0,0.00024515,7]
[358599744,1745299358257,-158.931794,0.00024515,7]
[358599745,1745299358290,-158.931794,0.00024515,7]
[358599746,1745299358324,-175.426174,0.00024515,7]
[358599747,1745299358357,-175.426174,0.00024515,7]
[358599748,1745299358390,-151.0,0.00024529,7]
[358599749,1745299358422,-158.425382,0.00024529,7]
[358599750,1745299358457,-151.0,0.00024529,7]
[358599751,1745299358489,-151.0,0.00024529,7]
[358599752,1745299358521,-158.931794,0.00024529,7]
[358599753,1745299358555,-158.931794,0.00024529,7]
[358599754,1745299358587,-158.931794,0.00024529,7]
[358599755,1745299358618,-158.931803,0.00024529,7]
[358599756,1745299358649,-175.426174,0.00024529,7]
[358599757,1745299358682,-175.426174,0.00024529,7]
[358599758,1745299358713,-175.426174,0.00024529,7]
[358599759,1745299358744,-175.426174,0.00024529,7]
[358599760,1745299358775,-151.0,0.0002453,7]
[358599761,1745299358806,-151.0,0.0002453,7]
[358599762,1745299358837,-151.0,0.0002453,7]
[358599763,1745299358868,-151.0,0.0002453,7]
[358599764,1745299358899,-221.04876,0.0002453,7]
[358599765,1745299358932,-175.426174,0.0002453,7]
[358599766,1745299359049,-175.426174,0.0002453,7]
[358599767,1745299359087,-151.0,0.00024658,7]
[358599768,1745299359120,-151.0,0.00024658,7]
[358599769,1745299359153,-232.858469,0.00024658,7]
[358599770,1745299359188,-208.76002227,0.00024783,7]
[358599771,1745299359220,-151.0,0.00024783,7]
[358599772,1745299359252,-199.67359109,0.00024783,7]
[358599773,1745299359284,-152.70466546,0.00024783,7]
[358599774,1745299359320,-151.0,0.00024783,7]
[358599775,1745299359352,-151.0,0.00024783,7]
[358599776,1745299359385,-222.255946,0.00024783,7]
[358599777,1745299359418,-175.426174,0.00024783,7]
[358599778,1745299359452,-175.426183,0.00024783,7]
[358599779,1745299359484,-151.0,0.000248,7]
[358599780,1745299359515,-151.0,0.000248,7]
[358599781,1745299359547,-151.0,0.000248,7]
[358599782,1745299359579,-151.0,0.000249,7]
[358599783,1745299359610,-151.0,0.000249,7]
[358599784,1745299359641,-151.0,0.000249,7]
[358599785,1745299359672,-151.0,0.000249,7]
[358599786,1745299359709,-151.0,0.0002498,7]
[358599787,1745299359739,-151.0,0.0002498,7]
[358599788,1745299359770,-151.0,0.0002499,7]
[358599789,1745299359800,-151.0,0.0002499,7]
[358599790,1745299359831,-151.0,0.0002499,7]
[358599791,1745299359863,-151.0,0.0002499,7]
[358599792,1745299359895,-151.0,0.00025,7]
[358599793,1745299359926,-228.50117,0.00025,7]
[358599794,1745299359957,-151.0,0.00025,7]
[358599795,1745299359990,-151.0,0.00025,7]
[358599796,1745299360024,-159.299332,0.00025015,7]
[358599797,1745299360056,-151.0,0.00025015,7]
[358599798,1745299360170,-151.0,0.00025015,7]
[358599799,1745299360212,-160.67316873,0.00025331,7]
[358599800,1745299360248,-363.138,0.00025344,9]
[358599801,1745299360292,-151.0,0.00025936,7]
[358599802,1745299360328,-151.0,0.00025936,7]
[358599803,1745299360362,-151.0,0.00025998,7]
[358599804,1745299360395,-151.0,0.00025998,7]
[358599805,1745299360428,-40892.19353754,0.00026,16]
[358599806,1745299360461,-151.0,0.00026,7]
[358599807,1745299360493,-252.240911,0.00026,7]
[358599808,1745299360535,-151.0,0.000268,7]
[358599809,1745299360573,-151.0,0.00027397,7]
[358599810,1745299360605,-151.0,0.00027397,7]
[358599811,1745299360636,-151.0,0.00027397,7]
[358599812,1745299360667,-151.0,0.00027397,7]
[358599813,1745299360700,-151.0,0.00027397,7]
[358599814,1745299360731,-151.0,0.00027397,7]
[358599815,1745299360762,-151.0,0.00027397,7]
[358599816,1745299360794,-151.0,0.00027397,7]
[358599817,1745299360825,-151.402806,0.00027397,7]
[358599818,1745299360857,-200.0,0.0002755,7]
[358599819,1745299360891,-431.0,0.00027886,7]
[358599820,1745299360928,-489.5,0.00028419,15]
[358599821,1745299360964,-250.0,0.00029,7]
[358599822,1745299360995,-250.0,0.00029,7]
[358599823,1745299361028,-250.0,0.00029,7]
[358599824,1745299361060,-250.0,0.00029,7]
[358599825,1745299361094,-93351.04569277,0.0003,15]
[358599835,1745299622023,197.790653,0.00027397,120]
[358599846,1745299831665,-263.25025285,0.00020787,2]
[358599847,1745299831675,-279.5022931,0.00020888,2]
[358599848,1745299831685,-300.0,0.00020989,2]
[358599849,1745299831694,-934.62300794,0.00020989,2]
[358599881,1745299838040,-265.37699206,0.00020989,2]
[358599882,1745299838051,-653.33404451,0.0002099,2]
[358599883,1745299838063,-42313.62905818,0.0002099,2]
[358599884,1745299838072,-1777.4440453,0.00021047,2]
[358599885,1745299838082,-2055.3420182,0.00021816,3]
[358599886,1745299838091,-2316.72343761,0.00021816,2]
[358599887,1745299838100,-225.19588436,0.00021817,2]
[358599888,1745299838109,-151.0,0.00021904,2]
[358599889,1745299838118,-500.0,0.00021912,2]
[358599890,1745299838128,-500.0,0.00021912,2]
[358599891,1745299838137,-500.0,0.00021912,2]
[358599892,1745299838147,-500.0,0.00021912,2]
[358599893,1745299838156,-500.0,0.00021912,2]
[358599894,1745299838165,-500.0,0.00021912,2]
[358599895,1745299838174,-500.0,0.00021912,2]
[358599896,1745299838183,-500.0,0.00021912,2]
[358599897,1745299838193,-500.0,0.00021912,2]
[358599898,1745299838202,-500.0,0.00021912,2]
[358599899,1745299838212,-500.0,0.00021912,2]
[358599900,1745299838221,-231.54657642,0.00021912,2]
[358599901,1745299838231,-500.0,0.00021912,2]
[358599902,1745299838241,-200.0,0.00021912,2]
[358599903,1745299838250,-500.0,0.00021912,2]
[358599904,1745299838260,-500.0,0.00021912,2]
[358599905,1745299838270,-500.0,0.00021912,2]
[358599906,1745299838279,-500.0,0.00021912,2]
[358599907,1745299838288,-500.0,0.00021912,2]
[358599908,1745299838298,-500.0,0.00021912,2]
[358599909,1745299838307,-500.0,0.00021912,2]
[358599910,1745299838321,-500.0,0.00021912,2]
[358599911,1745299838330,-500.0,0.00021912,2]
[358599912,1745299838339,-500.0,0.00021912,2]
[358599913,1745299838349,-500.0,0.00021912,2]
[358599914,1745299838358,-500.0,0.00021912,2]
[358599915,1745299838368,-500.0,0.00021912,2]
[358599916,1745299838377,-500.0,0.00021912,2]
[358599917,1745299838386,-500.0,0.00021912,2]
[358599918,1745299838396,-500.0,0.00021912,2]
[358599919,1745299838406,-500.0,0.00021912,2]
[358599920,1745299838415,-500.0,0.00021912,2]
[358599921,1745299838428,-500.0,0.00021912,2]
[358599922,1745299838437,-500.0,0.00021912,2]
[358599923,1745299838447,-500.0,0.00021912,2]
[358599924,1745299838456,-500.0,0.00021912,2]
[358599925,1745299838467,-500.0,0.00021912,2]
[358599926,1745299838477,-500.0,0.00021912,2]
[358599927,1745299838487,-500.0,0.00021912,2]
[358599928,1745299838498,-500.0,0.00021912,2]
[358599929,1745299838507,-221.06445009,0.00021912,2]
[358599930,1745299838517,-500.0,0.00021912,2]
[358599931,1745299838527,-500.0,0.00021912,2]
[358599932,1745299838537,-500.0,0.00021912,2]
[358599933,1745299838547,-500.0,0.00021912,2]
[358599934,1745299838556,-500.0,0.00021912,2]
[358599935,1745299838566,-428.54638815,0.00021912,2]
[358599936,1745299838576,-500.0,0.00021912,2]
[358599937,1745299838585,-39854.7154545,0.00021913,2]
[358599938,1745299838596,-500.0,0.00021916,2]
[358599939,1745299838605,-635.2674386,0.00021916,2]
[358599940,1745299838615,-500.0,0.00021916,2]
[358599941,1745299838624,-193.79571751,0.00021916,2]
[358599942,1745299838634,-500.0,0.00021916,2]
[358599943,1745299838644,-500.0,0.00021917,2]
[358599944,1745299838653,-501.15881688,0.00021917,2]
[358599945,1745299838663,-500.0,0.00021917,2]
[358599946,1745299838673,-500.0,0.00021917,2]
[358599947,1745299838682,-508.54937782,0.00021917,2]
[358599948,1745299838692,-501.44044594,0.00021917,2]
[358599949,1745299838701,-500.0,0.00021917,2]
[358599950,1745299838711,-504.1950519,0.00021917,2]
[358599951,1745299838720,-500.0,0.00021917,2]
[358599952,1745299838729,-665.41,0.00021917,2]
[358599953,1745299838739,-500.0,0.00021917,2]
[358599954,1745299838748,-500.0,0.00021917,2]
[358599955,1745299838757,-430.47101598,0.00021917,2]
[358599956,1745299838766,-500.0,0.00021917,2]
[358599957,1745299838775,-500.0,0.00021917,2]
[358599958,1745299838786,-531.95129299,0.00021917,2]
[358599959,1745299838795,-500.0,0.00021917,2]
[358599960,1745299838804,-500.0,0.00021917,2]
[358599961,1745299838813,-500.0,0.00021917,2]
[358599962,1745299838822,-500.0,0.00021917,2]
[358599963,1745299838831,-505.39067021,0.00021917,2]
[358599964,1745299838840,-500.0,0.00021917,2]
[358599965,1745299838947,-500.0,0.00021917,2]
[358599966,1745299838957,-500.0,0.00021917,2]
[358599967,1745299838966,-502.60782368,0.00021917,2]
[358599968,1745299838976,-500.0,0.00021917,2]
[358599969,1745299838986,-500.0,0.00021917,2]
[358599970,1745299838995,-500.0,0.00021917,2]
[358599971,1745299839004,-500.0,0.00021917,2]
[358599972,1745299839014,-589.8,0.00021917,2]
[358599973,1745299839023,-500.0,0.00021917,2]
[358599974,1745299839032,-500.07134799,0.00021917,2]
[358599975,1745299839041,-500.0,0.00021917,2]
[358599976,1745299839050,-510.72829712,0.00021917,2]
[358599977,1745299839059,-500.0,0.00021917,2]
[358599978,1745299839068,-500.0,0.00021917,2]
[358599979,1745299839078,-500.0,0.00021917,2]
[358599980,1745299839087,-503.57834202,0.00021917,2]
[358599981,1745299839097,-500.0,0.00021917,2]
[358599982,1745299839106,-513.82628286,0.00021917,2]
[358599983,1745299839115,-500.0,0.00021917,2]
[358599984,1745299839124,-500.0,0.00021917,2]
[358599985,1745299839133,-502.16583751,0.00021917,2]
[358599986,1745299839143,-501.47375915,0.00021917,2]
[358599987,1745299839152,-500.0,0.00021917,2]
[358599988,1745299839162,-500.0,0.00021917,2]
[358599989,1745299839170,-500.0,0.00021917,2]
[358599990,1745299839180,-500.0,0.00021917,2]
[358599991,1745299839189,-501.27530045,0.00021917,2]
[358599992,1745299839199,-500.0,0.00021917,2]
[358599993,1745299839209,-1000.0,0.00021917,2]
[358599994,1745299839218,-500.0,0.00021917,2]
[358599995,1745299839228,-501.86197263,0.00021917,2]
[358599996,1745299839237,-500.0,0.00021917,2]
[358599997,1745299839246,-505.1590037,0.00021917,2]
[358599998,1745299839256,-500.0,0.00021917,2]
[358599999,1745299839265,-500.0,0.00021917,2]
[358600000,1745299839274,-508.22077406,0.00021917,2]
[358600001,1745299839283,-599.28146797,0.00021917,2]
[358600002,1745299839293,-500.0,0.00021917,2]
[358600003,1745299839302,-504.57332965,0.00021917,2]
[358600004,1745299839312,-500.0,0.00021917,2]
[358600005,1745299839322,-506.63485469,0.00021917,2]
[358600006,1745299839331,-200.95080609,0.00021917,2]
[358600007,1745299839341,-501.15703685,0.00021917,2]
[358600008,1745299839350,-500.0,0.00021917,2]
[358600009,1745299839360,-216.4177862,0.00021917,2]
[358600010,1745299839370,-500.0,0.00021917,2]
[358600011,1745299839379,-500.0,0.00021917,2]
[358600012,1745299839388,-500.0,0.00021917,2]
[358600013,1745299839399,-500.0,0.00021917,2]
[358600014,1745299839408,-500.0,0.00021917,2]
[358600015,1745299839418,-500.0,0.00021917,2]
[358600016,1745299839431,-500.0,0.00021917,2]
[358600017,1745299839441,-507.9827039,0.00021917,2]
[358600018,1745299839451,-637.68,0.00021917,2]
[358600019,1745299839460,-500.0,0.00021917,2]
[358600020,1745299839471,-503.59119997,0.00021917,2]
[358600021,1745299839481,-500.0,0.00021917,2]
[358600022,1745299839491,-500.62260915,0.00021917,2]
[358600023,1745299839502,-500.0,0.00021917,2]
[358600024,1745299839511,-508.03522701,0.00021917,2]
[358600025,1745299839522,-500.0,0.00021917,2]
[358600026,1745299839533,-502.45233788,0.00021917,2]
[358600027,1745299839543,-501.41201005,0.00021917,2]
[358600028,1745299839552,-500.0,0.00021917,2]
[358600029,1745299839561,-505.85368283,0.00021917,2]
[358600030,1745299839571,-544.72591149,0.00021917,2]
[358600031,1745299839580,-500.0,0.00021917,2]
[358600032,1745299839590,-500.0,0.00021917,2]
[358600033,1745299839600,-500.0,0.00021917,2]
[358600034,1745299839609,-500.0,0.00021917,2]
[358600035,1745299839618,-500.0,0.00021917,2]
[358600036,1745299839628,-500.0,0.00021917,2]
[358600037,1745299839637,-500.0,0.00021917,2]
[358600038,1745299839647,-502.7705392,0.00021917,2]
[358600039,1745299839663,-382.14794993,0.00021917,2]
[358600040,1745299839677,-500.0,0.00021917,2]
[358600041,1745299839687,-500.0,0.00021917,2]
[358600042,1745299839696,-500.0,0.00021917,2]
[358600043,1745299839706,-500.0,0.00021917,2]
[358600044,1745299839716,-500.0,0.00021917,2]
[358600045,1745299839725,-500.0,0.00021917,2]
[358600046,1745299839735,-500.0,0.00021917,2]
[358600047,1745299839745,-500.0,0.00021917,2]
[358600048,1745299839755,-500.0,0.00021917,2]
[358600049,1745299839764,-500.77929166,0.00021917,2]
[358600050,1745299839774,-500.0,0.00021917,2]
[358600051,1745299839784,-154.88147591,0.00021917,2]
[358600053,1745299839794,-500.0,0.00021917,2]
[358600054,1745299839803,-500.0,0.00021917,2]
[358600055,1745299839813,-500.0,0.00021917,2]
[358600056,1745299839822,-1096.3,0.00021917,2]
[358600057,1745299839832,-500.0,0.00021917,2]
[358600058,1745299839842,-500.0,0.00021917,2]
[358600059,1745299839851,-500.0,0.00021917,2]
[358600060,1745299839860,-500.0,0.00021917,2]
[358600061,1745299839870,-500.0,0.00021917,2]
[358600062,1745299839879,-500.0,0.00021917,2]
[358600063,1745299839888,-500.0,0.00021917,2]
[358600064,1745299839898,-507.29333237,0.00021917,2]
[358600065,1745299839908,-500.0,0.00021917,2]
[358600066,1745299839918,-500.0,0.00021917,2]
[358600067,1745299839928,-500.0,0.00021917,2]
[358600068,1745299839937,-500.0,0.00021917,2]
[358600069,1745299839947,-500.0,0.00021917,2]
[358600070,1745299839956,-500.0,0.00021917,2]
[358600071,1745299839966,-500.0,0.00021917,2]
[358600072,1745299839976,-500.0,0.00021917,2]
[358600073,1745299839985,-640.26016646,0.00021917,2]
[358600074,1745299839995,-500.0,0.00021917,2]
[358600075,1745299840005,-500.0,0.00021917,2]
[358600076,1745299840015,-500.0,0.00021917,2]
[358600077,1745299840025,-678.26,0.00021917,2]
[358600078,1745299840034,-500.0,0.00021917,2]
[358600079,1745299840044,-500.0,0.00021917,2]
[358600080,1745299840053,-500.0,0.00021917,2]
[358600081,1745299840062,-500.0,0.00021917,2]
[358600082,1745299840072,-569.22231227,0.00021917,2]
[358600083,1745299840082,-500.0,0.00021917,2]
[358600084,1745299840091,-504.92675419,0.00021917,2]
[358600085,1745299840101,-500.0,0.00021917,2]
[358600086,1745299840111,-637.89,0.00021917,2]
[358600087,1745299840121,-500.0,0.00021917,2]
[358600088,1745299840131,-500.0,0.00021917,2]
[358600089,1745299840140,-500.0,0.00021917,2]
[358600090,1745299840150,-508.43243147,0.00021917,2]
[358600091,1745299840159,-500.0,0.00021917,2]
[358600092,1745299840169,-500.0,0.00021917,2]
[358600093,1745299840179,-500.0,0.00021917,2]
[358600094,1745299840188,-500.0,0.00021917,2]
[358600095,1745299840198,-504.86195458,0.00021917,2]
[358600096,1745299840207,-500.0,0.00021917,2]
[358600097,1745299840217,-500.0,0.00021917,2]
[358600098,1745299840227,-500.0,0.00021917,2]
[358600099,1745299840236,-500.0,0.00021917,2]
[358600100,1745299840246,-500.0,0.00021917,2]
[358600101,1745299840255,-500.0,0.00021917,2]
[358600102,1745299840265,-500.0,0.00021917,2]
[358600103,1745299840274,-500.0,0.00021917,2]
[358600104,1745299840283,-500.0,0.00021917,2]
[358600105,1745299840293,-500.0,0.00021917,2]